lending/lending_fUSD_20240824
["ID","MTS","AMOUNT","RATE_DAILY","PERIOD"]
[335754467,1724478633242,-13394.34796589,0.000138,3]
[335754468,1724478633274,516.15,0.00010999,2]
[335754469,1724478633288,-1282.02818207,0.000138,3]
[335754470,1724478633300,-6085.0,0.000138,3]
[335754471,1724478633312,-1312.39356687,0.000138,3]
[335754472,1724478633324,-352.33014802,0.000138,3]
[335754473,1724478633335,-5530.51723118,0.000138,3]
[335754474,1724478633355,-854.80884198,0.000138,3]
[335754475,1724478633367,-911.46,0.000138,3]
[335754476,1724478633379,-8110.91307769,0.000138,3]
[335754477,1724478633420,516.15,0.00010999,2]
[335754478,1724478633476,516.15,0.00010999,2]
[335754479,1724478633517,516.15,0.00010999,2]
[335754480,1724478633565,516.15,0.00010999,2]
[335754481,1724478633735,516.15,0.00010999,2]
[335754482,1724478633764,500.0,0.00010958,2]
[335754483,1724478633994,516.15,0.00010999,2]
[335754484,1724478634024,500.0,0.00010958,2]
[335754485,1724478634055,935.67,0.00010958,2]
[335754486,1724478634265,516.15,0.00010999,2]
[335754487,1724478634293,500.0,0.00010958,2]
[335754488,1724478634325,935.67,0.00010958,2]
[335754489,1724478634534,516.15,0.00010999,2]
[335754490,1724478634562,500.0,0.00010958,2]
[335754491,1724478634593,935.67,0.00010958,2]
[335754492,1724478634797,516.15,0.00010999,2]
[335754493,1724478634854,935.67,0.00010958,2]
[335754494,1724478634895,500.0,0.00010958,2]
[335754495,1724478634924,190.924,0.00011005,2]
[335754496,1724478635050,516.15,0.00010999,2]
[335754497,1724478635110,935.67,0.00010958,2]
[335754498,1724478635296,500.0,0.00010958,2]
[335754499,1724478635332,516.15,0.00010999,2]
[335754500,1724478635375,935.67,0.00010958,2]
[335754501,1724478635420,500.0,0.00010999,2]
[335754502,1724478635552,516.15,0.00010999,2]
[335754503,1724478635636,935.67,0.00010999,2]
[335754504,1724478635700,500.0,0.00010999,2]
[335754505,1724478635824,516.15,0.00010999,2]
[335754506,1724478635902,935.67,0.00010999,2]
[335754507,1724478635960,500.0,0.00010999,2]
[335754508,1724478636086,516.15,0.00010999,2]
[335754509,1724478636231,500.0,0.00010999,2]
[335754510,1724478636378,516.15,0.00010999,2]
[335754511,1724478636538,500.0,0.00010999,2]
[335754512,1724478636795,516.20374721,0.00010999,2]
[335754513,1724478636823,500.0,0.00010999,2]
[335754514,1724478636925,935.67,0.00010999,2]
[335754515,1724478637094,500.0,0.00010999,2]
[335754516,1724478637366,500.0,0.00010999,2]
[335754517,1724478637564,935.67,0.00010999,2]
[335754518,1724478637680,500.0,0.00010999,2]
[335754519,1724478637828,935.67,0.00010999,2]
[335754520,1724478637934,500.0,0.00010999,2]
[335754524,1724478638123,935.67,0.00010999,2]
[335754525,1724478638222,-458.48044328,0.00013799,2]
[335754526,1724478638249,500.0,0.00010999,2]
[335754527,1724478638280,-41.51955672,0.00013799,2]
[335754528,1724478638289,-500.0,0.00013799,2]
[335754529,1724478638298,-3920.50190715,0.000138,3]
[335754530,1724478638338,-1185.14145906,0.000138,3]
[335754531,1724478638380,935.67,0.00010999,2]
[335754532,1724478638397,-531.86467354,0.000138,3]
[335754533,1724478638408,-463.4202856,0.000138,3]
[335754534,1724478638419,-2977.32631438,0.000138,3]
[335754535,1724478638430,-9059.29733584,0.000138,3]
[335754536,1724478638441,-3958.3938789,0.000138,3]
[335754537,1724478638451,-856.07875757,0.00013861,2]
[335754538,1724478638459,-151.0,0.0001389,2]
[335754539,1724478638469,-14133.73736353,0.000139,3]
[335754540,1724478638481,-6057.23386798,0.000139,3]
[335754541,1724478638492,-16071.45571123,0.000139,3]
[335754542,1724478638503,-27604.04831325,0.000139,3]
[335754543,1724478638515,-22243.24876,0.000139,3]
[335754544,1724478638527,-356.64605116,0.000139,3]
[335754545,1724478638561,500.0,0.00010999,2]
[335754546,1724478638578,-399.59617961,0.000139,3]
[335754547,1724478638592,-13552.17793519,0.000139,3]
[335754548,1724478638605,-290.08119832,0.000139,3]
[335754556,1724478638683,-43718.43682073,0.000139,3]
[335754557,1724478638695,-500.0,0.00013972,2]
[335754558,1724478638704,-500.0,0.00013972,2]
[335754559,1724478638713,-288.73,0.00013972,2]
[335754560,1724478638722,-173.29,0.00013989,2]
[335754561,1724478638731,-500.0,0.00013989,2]
[335754562,1724478638739,-500.0,0.00013989,2]
[335754564,1724478638749,-500.0,0.00013989,2]
[335754567,1724478638758,-500.0,0.00013989,2]
[335754569,1724478638767,-500.0,0.00013989,2]
[335754571,1724478638776,-17986.1730178,0.0001399,2]
[335754573,1724478638784,-165.59023242,0.00013997,2]
[335754575,1724478638793,-201.11071759,0.00013999,5]
[335754577,1724478638802,-1355.02268,0.00013999,5]
[335754579,1724478638812,-500.0,0.00013999,2]
[335754581,1724478638821,-500.0,0.00013999,2]
[335754583,1724478638830,-500.0,0.00013999,2]
[335754585,1724478638839,-500.0,0.00013999,2]
[335754587,1724478638848,-150.0,0.00014,2]
[335754589,1724478638857,-150.0,0.00014,2]
[335754591,1724478638869,-150.0,0.00014,2]
[335754593,1724478638878,-150.0,0.00014,2]
[335754594,1724478638887,-1923.0,0.00014,2]
[335754596,1724478638896,-1258.0,0.00014,2]
[335754598,1724478638905,-725.837,0.00014,2]
[335754600,1724478638914,-623.0,0.00014,2]
[335754602,1724478638923,-1893.0,0.00014,2]
[335754604,1724478638932,-548.0,0.00014,2]
[335754606,1724478638943,-1017.714,0.00014,2]
[335754608,1724478638952,-3317.0,0.00014,2]
[335754610,1724478638961,-243.825,0.00014,2]
[335754612,1724478638970,-764.0,0.00014,2]
[335754614,1724478638979,-153763.27300577,0.00014,4]
[335754616,1724478638991,-1400.23603358,0.00014,4]
[335754619,1724478639018,935.67,0.00010999,2]
[335754625,1724478639067,279.98387328,0.00010999,2]
[335754628,1724478639093,935.67,0.00010999,2]
[335754637,1724478639181,935.67,0.00010999,2]
[335754665,1724478639445,935.67,0.00010999,2]
[335754692,1724478639751,200.0,0.00011005,2]
[335754693,1724478639807,935.67,0.00010999,2]
[335754712,1724478640095,935.67,0.00010999,2]
[335754739,1724478640341,935.67,0.00010999,2]
[335754742,1724478640364,-500.0,0.00013999,2]
[335754744,1724478640373,-3198.49104601,0.00014,4]
[335754747,1724478640384,-14593.35062335,0.00014,4]
[335754764,1724478640538,-256.62236691,0.000138,2]
[335754773,1724478640615,935.67,0.00010999,2]
[335754778,1724478640652,-760.74789201,0.000138,2]
[335754784,1724478640711,-2771.94974108,0.000138,2]
[335754786,1724478640721,-234204.30922146,0.00014,4]
[335754788,1724478640731,-150.0,0.00014,2]
[335754790,1724478640740,-1000.0,0.00014,3]
[335754792,1724478640749,-151.0,0.00014,2]
[335754794,1724478640758,-250.063745,0.00014,2]
[335754796,1724478640768,-151.0,0.00014,2]
[335754798,1724478640777,-256.983361,0.00014,2]
[335754800,1724478640786,-244.218228,0.00014,2]
[335754802,1724478640795,-151.0,0.00014,2]
[335754803,1724478640805,-151.0,0.00014,2]
[335754805,1724478640814,-151.0,0.00014,2]
[335754807,1724478640824,-151.0,0.00014,2]
[335754809,1724478640833,-151.0,0.00014,2]
[335754811,1724478640842,-151.0,0.00014,2]
[335754813,1724478640852,-154.594468,0.00014,2]
[335754815,1724478640865,-207.697261,0.00014,2]
[335754817,1724478640876,-207.697261,0.00014,2]
[335754819,1724478640886,-151.691965,0.00014,2]
[335754821,1724478640896,-151.0,0.00014,2]
[335754823,1724478640907,-151.0,0.00014,2]
[335754825,1724478640916,-150.0,0.00014,2]
[335754827,1724478640926,-151.0,0.00014,2]
[335754830,1724478640935,-151.0,0.00014,2]
[335754833,1724478640946,-5100.0,0.00014,3]
[335754835,1724478640956,-150.0,0.00014005,2]
[335754837,1724478640966,-150.0,0.00014005,2]
[335754839,1724478640975,-150.0,0.00014005,2]
[335754841,1724478640984,-794.0,0.00014007,2]
[335754843,1724478640994,-150.507619,0.000141,3]
[335754845,1724478641004,-220.226161,0.000141,3]
[335754847,1724478641013,-284.0,0.000142,2]
[335754849,1724478641023,-600.065579,0.00014247,2]
[335754850,1724478641032,-707.08,0.00014384,2]
[335754852,1724478641043,-1061.05,0.00014385,2]
[335754854,1724478641053,-493.0,0.000144,4]
[335754856,1724478641062,-284.0,0.0001462,2]
[335754858,1724478641071,-200.0,0.0001462,2]
[335754860,1724478641080,-181.24,0.00014655,2]
[335754862,1724478641090,-170.801,0.00014655,2]
[335754864,1724478641099,-794.0,0.00014707,2]
[335754866,1724478641109,-499.0,0.00014718,2]
[335754868,1724478641118,-155.0,0.00014753,2]
[335754870,1724478641127,-155.0,0.00014753,2]
[335754871,1724478641136,-22768.23769383,0.000149,2]
[335754873,1724478641146,-364.07,0.0001494,2]
[335754875,1724478641155,-626.24,0.0001494,2]
[335754877,1724478641164,-575.93,0.00014955,2]
[335754879,1724478641173,-371.80089226,0.00014971,2]
[335754881,1724478641183,-324.31,0.00014999,2]
[335754883,1724478641192,-500.0,0.00014999,2]
[335754885,1724478641202,-500.0,0.00014999,2]
[335754887,1724478641214,-500.0,0.00014999,2]
[335754889,1724478641224,-500.0,0.00014999,2]
[335754891,1724478641233,-496.0,0.00015,2]
[335754893,1724478641243,-150.0,0.00015,2]
[335754895,1724478641252,-7000.0,0.00015,3]
[335754897,1724478641261,-33406.09618698,0.00015,2]
[335754899,1724478641271,-1199.46747925,0.00015,2]
[335754901,1724478641280,-676.99611442,0.00015,2]
[335754903,1724478641289,-221.08275124,0.00015,2]
[335754905,1724478641299,-5000.0,0.00015,2]
[335754907,1724478641308,-24990.0,0.00015,2]
[335754909,1724478641317,-1455.0,0.00015,2]
[335754911,1724478641327,-10069.0,0.00015,2]
[335754913,1724478641336,-150.0,0.00015,2]
[335754915,1724478641345,-284.0,0.0001504,2]
[335754917,1724478641354,-200.0,0.0001504,2]
[335754919,1724478641363,-707.08,0.00015068,2]
[335754921,1724478641372,-300.0,0.00015068,2]
[335754923,1724478641382,-600.065579,0.00015068,2]
[335754925,1724478641391,-500.0,0.000151,2]
[335754927,1724478641402,-823.0,0.00015119,2]
[335754929,1724478641411,-170.801,0.00015424,2]
[335754931,1724478641420,-794.0,0.00015442,2]
[335754933,1724478641429,-201.0,0.0001547,2]
[335754935,1724478641439,-284.0,0.0001547,2]
[335754937,1724478641449,-200.0,0.0001547,2]
[335754939,1724478641458,-707.08,0.00015753,2]
[335754941,1724478641468,-167.0,0.00015831,2]
[335754943,1724478641477,-167.0,0.00015831,2]
[335754945,1724478641487,-2135.5839631,0.00015889,2]
[335754947,1724478641496,-5361.6741609,0.00015889,2]
[335754949,1724478641505,-201.0,0.0001589,2]
[335754951,1724478641515,-284.0,0.0001589,2]
[335754953,1724478641524,-200.0,0.0001589,2]
[335754955,1724478641535,-600.065579,0.0001589,2]
[335754957,1724478641544,-500.0,0.00015899,2]
[335754959,1724478641554,-500.0,0.00015899,2]
[335754960,1724478641563,-500.0,0.00015899,2]
[335754963,1724478641572,-500.0,0.00015899,2]
[335754964,1724478641582,-500.0,0.00015899,2]
[335754966,1724478641591,-500.0,0.00015899,2]
[335754968,1724478641601,-500.0,0.00015899,2]
[335754970,1724478641610,-500.0,0.00015899,2]
[335754972,1724478641620,-151.0,0.000159,2]
[335754974,1724478641629,-151.555404,0.000159,2]
[335754976,1724478641639,-151.0,0.000159,2]
[335754978,1724478641648,-151.0,0.000159,2]
[335754980,1724478641658,-151.0,0.000159,2]
[335754982,1724478641667,-155.035272,0.000159,2]
[335754984,1724478641676,-151.0,0.000159,2]
[335754986,1724478641686,-151.0,0.000159,2]
[335754988,1724478641696,-207.697261,0.000159,2]
[335754990,1724478641706,-207.697261,0.000159,2]
[335754992,1724478641716,-151.0,0.000159,2]
[335754994,1724478641725,-151.0,0.000159,2]
[335754996,1724478641735,-151.0,0.000159,2]
[335754998,1724478641744,-282.202585,0.000159,2]
[335755000,1724478641753,-125364.83212177,0.000159,2]
[335755005,1724478641790,935.67,0.00010999,2]
[335755023,1724478641841,935.67,0.00010999,2]
[335755030,1724478642028,935.73862962,0.00010999,2]
[335755163,1724478643271,-3040.95,0.000159,2]
[335755164,1724478643437,-44786.61043031,0.000159,2]
[335755171,1724478643502,-3425.09560134,0.000159,2]
[335755435,1724478646141,-500.0,0.00013799,2]
[335755437,1724478646151,-500.0,0.00013989,2]
[335755439,1724478646160,-500.0,0.00013999,2]
[335755441,1724478646169,-250.24114476,0.00014999,2]
[335755758,1724478649401,-249.75885524,0.00014999,2]
[335755760,1724478649410,-433.51583153,0.00015899,2]
[335755763,1724478649424,-66.48416847,0.00015899,2]
[335755765,1724478649433,-249.52986365,0.00015899,2]
[335755767,1724478649444,-250.47013635,0.00015899,2]
[335755769,1724478649454,-17362.05081437,0.000159,2]
[335755782,1724478649566,622.98579079,0.00010958,2]
[335755783,1724478649710,500.0,0.00010958,2]
[335755789,1724478649772,500.0,0.00010958,2]
[335755793,1724478649806,2317.7325,0.0001095,2]
[335755799,1724478649851,500.0,0.00010958,2]
[335755805,1724478649909,500.0,0.00010958,2]
[335755810,1724478649967,35000.0,0.0001099,2]
[335755814,1724478649994,500.0,0.00010958,2]
[335755819,1724478650029,544.10095451,0.00010958,2]
[335755827,1724478650097,500.0,0.00010958,2]
[335755854,1724478650352,500.0,0.00010999,2]
[335755877,1724478650561,945.0,0.00010958,2]
[335755883,1724478650606,500.0,0.00010999,2]
[335755905,1724478650810,945.0,0.00010958,2]
[335755917,1724478650909,500.82100898,0.00010999,2]
[335755934,1724478651064,945.0,0.00010958,2]
[335755969,1724478651382,945.0,0.00010958,2]
[335755977,1724478651444,500.0,0.00010958,2]
[335756044,1724478652047,945.0,0.00010958,2]
[335756074,1724478652465,945.0,0.00010958,2]
[335756092,1724478652637,945.0,0.00010999,2]
[335756120,1724478652911,945.0,0.00010999,2]
[335756125,1724478652948,500.0,0.00010958,2]
[335756157,1724478653273,945.0,0.00010999,2]
[335756161,1724478653299,500.0,0.00010958,2]
[335756184,1724478653517,500.0,0.00010958,2]
[335756188,1724478653548,500.0,0.00010958,2]
[335756192,1724478653575,945.0,0.00010999,2]
[335756212,1724478653765,500.0,0.00010958,2]
[335756216,1724478653801,945.0,0.00010999,2]
[335756221,1724478653832,500.0,0.00010958,2]
[335756229,1724478654040,500.0,0.00010958,2]
[335756230,1724478654068,945.0,0.00010999,2]
[335756231,1724478654111,500.0,0.00010958,2]
[335756232,1724478654311,620.93,0.00010958,2]
[335756233,1724478654364,945.0,0.00010999,2]
[335756234,1724478654392,500.0,0.00010958,2]
[335756235,1724478654613,500.0,0.00010999,2]
[335756236,1724478654660,945.0,0.00010999,2]
[335756237,1724478654878,500.0,0.00010999,2]
[335756238,1724478654937,945.0,0.00010999,2]
[335756245,1724478655415,500.0,0.00010999,2]
[335756249,1724478655444,945.0,0.00010999,2]
[335756278,1724478655722,500.0,0.00010999,2]
[335756285,1724478655774,945.0,0.00010999,2]
[335756306,1724478655996,500.0,0.00010999,2]
[335756323,1724478656160,945.0,0.00010999,2]
[335756337,1724478656293,945.0,0.00010999,2]
[335756341,1724478656321,500.0,0.00010999,2]
[335756354,1724478656575,945.0,0.00010999,2]
[335756355,1724478656603,500.0,0.00010999,2]
[335756356,1724478656832,500.0,0.00010999,2]
[335756357,1724478656860,945.0,0.00010999,2]
[335756358,1724478657133,945.0,0.00010999,2]
[335756359,1724478657161,500.0,0.00010999,2]
[335756360,1724478657406,945.0,0.00010999,2]
[335756361,1724478657436,500.0,0.00010999,2]
[335756368,1724478657648,945.05172783,0.00010999,2]
[335756372,1724478657680,500.0,0.00010999,2]
[335756400,1724478657946,500.0,0.00010999,2]
[335756411,1724478658040,500.0,0.00010958,2]
[335756412,1724478658294,500.0,0.00010958,2]
[335756423,1724478658578,500.0,0.00010958,2]
[335756424,1724478658847,500.0,0.00010958,2]
[335756425,1724478659143,500.0,0.00010958,2]
[335756426,1724478659307,500.0,0.00010999,2]
[335756427,1724478659398,500.0,0.00010958,2]
[335756428,1724478659577,500.0,0.00010999,2]
[335756429,1724478659705,500.0,0.00010999,2]
[335756430,1724478659832,500.0,0.00010999,2]
[335756431,1724478659959,500.0,0.00010999,2]
[335756432,1724478660271,500.0,0.00010999,2]
[335756433,1724478660390,500.0,0.00010999,2]
[335756434,1724478660537,500.0,0.00010999,2]
[335756435,1724478660678,441.99393154,0.00010999,2]
[335756436,1724478660805,500.0,0.00010999,2]
[335756437,1724478661173,500.0,0.00010999,2]
[335756438,1724478661465,500.0,0.00010999,2]
[335756439,1724478661776,500.0,0.00010999,2]
[335756440,1724478662057,500.0,0.00010999,2]
[335756441,1724478662318,500.0,0.00010999,2]
[335756442,1724478662619,500.0,0.00010999,2]
[335756443,1724478662815,630.76,0.00010958,2]
[335756444,1724478662883,500.0,0.00010999,2]
[335756445,1724478663081,630.76,0.00010958,2]
[335756446,1724478663177,500.0,0.00010999,2]
[335756447,1724478663345,630.76,0.00010958,2]
[335756448,1724478663428,500.0,0.00010999,2]
[335756449,1724478663602,630.76,0.00010958,2]
[335756450,1724478663640,16647.1,0.00010958,2]
[335756451,1724478663717,500.0,0.00010999,2]
[335756452,1724478663884,630.76,0.00010958,2]
[335756453,1724478663950,16647.1,0.00010958,2]
[335756454,1724478663987,500.0,0.00010999,2]
[335756455,1724478664141,500.0,0.00010958,2]
[335756456,1724478664184,630.76,0.00010958,2]
[335756457,1724478664234,16647.1,0.00010958,2]
[335756458,1724478664269,566.89889915,0.00010999,2]
[335756459,1724478664502,16647.1,0.00010958,2]
[335756460,1724478664763,16647.1,0.00010958,2]
[335756461,1724478664795,630.76,0.00010999,2]
[335756462,1724478665011,16647.1,0.00010958,2]
[335756463,1724478665253,16647.1,0.00010999,2]
[335756464,1724478665412,630.76,0.00010999,2]
[335756465,1724478665535,16647.1,0.00010999,2]
[335756466,1724478665696,630.76,0.00010999,2]
[335756467,1724478665792,16647.1,0.00010999,2]
[335756468,1724478665935,630.76,0.00010999,2]
[335756469,1724478666071,16647.1,0.00010999,2]
[335756470,1724478666188,630.76,0.00010999,2]
[335756471,1724478666228,500.0,0.00010958,2]
[335756472,1724478666391,16647.1,0.00010999,2]
[335756473,1724478666547,630.76,0.00010999,2]
[335756474,1724478666671,16647.1,0.00010999,2]
[335756475,1724478666784,630.76,0.00010999,2]
[335756476,1724478666938,16647.1,0.00010999,2]
[335756477,1724478667069,630.76,0.00010999,2]
[335756478,1724478667232,16647.1,0.00010999,2]
[335756479,1724478667484,16647.1,0.00010999,2]
[335756480,1724478667511,630.76,0.00010999,2]
[335756481,1724478667856,524.29950339,0.00010958,2]
[335756482,1724478667937,630.76,0.00010999,2]
[335756483,1724478667967,16647.1,0.00010999,2]
[335756484,1724478668216,630.76,0.00010999,2]
[335756485,1724478668242,16647.1,0.00010999,2]
[335756486,1724478668287,500.0,0.00010958,2]
[335756487,1724478668479,630.76,0.00010999,2]
[335756488,1724478668520,16647.1,0.00010999,2]
[335756489,1724478668550,35000.0,0.00010981,2]
[335756490,1724478668770,16647.1,0.00010999,2]
[335756491,1724478668797,630.76,0.00010999,2]
[335756492,1724478669038,16647.1,0.00010999,2]
[335756493,1724478669066,630.76,0.00010999,2]
[335756494,1724478669320,16647.1,0.00010999,2]
[335756495,1724478669355,630.76,0.00010999,2]
[335756496,1724478669561,556.16797932,0.00010958,2]
[335756497,1724478669595,16647.1,0.00010999,2]
[335756498,1724478669624,630.76,0.00010999,2]
[335756499,1724478669825,16647.1,0.00010999,2]
[335756500,1724478669858,630.76,0.00010999,2]
[335756501,1724478670074,16647.29131863,0.00010999,2]
[335756502,1724478670104,630.8,0.00010999,2]
[335756503,1724478670632,500.0,0.00010958,2]
[335756504,1724478670992,170.68815135,0.00010958,2]
[335756505,1724478671715,510.62644666,0.00010958,2]
[335756506,1724478672360,436.10770028,0.00010958,2]
[335756507,1724478672464,641.78604778,0.00010958,2]
[335756508,1724478674268,500.0,0.00010958,2]
[335756509,1724478674546,500.0,0.00010958,2]
[335756510,1724478674814,500.0,0.00010958,2]
[335756511,1724478675071,500.0,0.00010958,2]
[335756512,1724478675335,500.0,0.00010958,2]
[335756513,1724478675365,500.0,0.00010958,2]
[335756514,1724478675585,533.56283033,0.00010958,2]
[335756515,1724478675638,500.0,0.00010958,2]
[335756516,1724478675778,500.0,0.00010958,2]
[335756517,1724478676111,500.0,0.00010958,2]
[335756518,1724478676140,500.0,0.00010999,2]
[335756519,1724478676376,500.0,0.00010958,2]
[335756520,1724478676405,500.0,0.00010999,2]
[335756521,1724478676626,500.0,0.00010958,2]
[335756522,1724478676715,1320.18,0.00010958,2]
[335756523,1724478676925,500.0,0.00010999,2]
[335756524,1724478676967,1320.18,0.00010958,2]
[335756525,1724478677185,500.0,0.00010999,2]
[335756526,1724478677258,500.0,0.00010958,2]
[335756527,1724478677313,1320.18,0.00010958,2]
[335756528,1724478677441,451.10928096,0.00010999,2]
[335756529,1724478677504,300.0,0.00010958,2]
[335756530,1724478677665,1320.18,0.00010958,2]
[335756531,1724478677756,300.0,0.00010958,2]
[335756532,1724478677790,500.0,0.00010999,2]
[335756533,1724478677931,1320.18,0.00010958,2]
[335756534,1724478678059,629.78,0.00010999,2]
[335756535,1724478678088,300.0,0.00010958,2]
[335756536,1724478678196,1320.18,0.00010958,2]
[335756537,1724478678483,300.0,0.00010958,2]
[335756538,1724478678516,1320.18,0.00010999,2]
[335756539,1724478678597,300.0,0.00010958,2]
[335756540,1724478678743,1320.18,0.00010999,2]
[335756541,1724478678860,300.0,0.00010958,2]
[335756542,1724478679074,1320.18,0.00010999,2]
[335756543,1724478679132,300.0,0.00010999,2]
[335756544,1724478679337,1320.18,0.00010999,2]
[335756545,1724478679365,500.0,0.00010958,2]
[335756546,1724478679397,844.45,0.00010958,2]
[335756547,1724478679424,229.41731592,0.00010999,2]
[335756548,1724478679609,1320.18,0.00010999,2]
[335756549,1724478679641,844.45,0.00010958,2]
[335756550,1724478679898,844.45,0.00010958,2]
[335756551,1724478680157,844.45,0.00010958,2]
[335756552,1724478680185,500.0,0.00010958,2]
[335756553,1724478680212,1320.18,0.00010999,2]
[335756554,1724478680417,844.45,0.00010958,2]
[335756555,1724478680444,500.0,0.00010958,2]
[335756556,1724478680476,1320.18,0.00010999,2]
[335756557,1724478680581,521.27938899,0.00010958,2]
[335756558,1724478680680,844.45,0.00010958,2]
[335756559,1724478680708,500.0,0.00010958,2]
[335756560,1724478680955,844.45,0.00010999,2]
[335756561,1724478680990,500.0,0.00010958,2]
[335756562,1724478681097,1320.18,0.00010999,2]
[335756563,1724478681215,844.45,0.00010999,2]
[335756564,1724478681249,500.0,0.00010958,2]
[335756565,1724478681390,1320.18,0.00010999,2]
[335756566,1724478681486,844.45,0.00010999,2]
[335756567,1724478681682,1320.18,0.00010999,2]
[335756568,1724478681716,500.0,0.00010958,2]
[335756569,1724478681745,844.45,0.00010999,2]
[335756570,1724478681808,500.0,0.00010958,2]
[335756571,1724478681970,500.0,0.00010999,2]
[335756572,1724478681998,844.45,0.00010999,2]
[335756573,1724478682167,1320.18,0.00010999,2]
[335756574,1724478682226,500.0,0.00010999,2]
[335756575,1724478682271,844.45,0.00010999,2]
[335756576,1724478682442,1320.18,0.00010999,2]
[335756577,1724478682513,844.45,0.00010999,2]
[335756578,1724478682598,494.36593804,0.00010958,2]
[335756579,1724478682689,1320.18,0.00010999,2]
[335756580,1724478682745,500.0,0.00010999,2]
[335756581,1724478682779,844.45,0.00010999,2]
[335756582,1724478683073,1320.18,0.00010999,2]
[335756583,1724478683101,500.0,0.00010999,2]
[335756584,1724478683131,844.45,0.00010999,2]
[335756585,1724478683220,1320.18,0.00010999,2]
[335756586,1724478683299,500.0,0.00010999,2]
[335756587,1724478683325,844.45,0.00010999,2]
[335756588,1724478683482,1320.18,0.00010999,2]
[335756589,1724478683554,500.0,0.00010999,2]
[335756590,1724478683581,844.45,0.00010999,2]
[335756591,1724478683751,1320.18,0.00010999,2]
[335756592,1724478683812,500.0,0.00010999,2]
[335756593,1724478683901,844.45,0.00010999,2]
[335756594,1724478684012,1320.41725135,0.00010999,2]
[335756595,1724478684078,500.0,0.00010999,2]
[335756596,1724478684202,844.45,0.00010999,2]
[335756597,1724478684356,500.0,0.00010999,2]
[335756598,1724478684485,844.45,0.00010999,2]
[335756599,1724478684623,500.0,0.00010999,2]
[335756600,1724478684881,844.45,0.00010999,2]
[335756601,1724478684910,500.0,0.00010999,2]
[335756602,1724478685160,844.45,0.00010999,2]
[335756603,1724478685189,244.96,0.00010999,2]
[335756604,1724478685447,844.45,0.00010999,2]
[335756605,1724478685710,844.67,0.00010999,2]
[335756606,1724478686064,500.0,0.00010958,2]